Workbook

Sheet تكاليف إعادة تصميم الحمام
B1: ورقة العمل "تكاليف إعادة تصميم الحمام"
B2: ملاحظة: ستظهر أعمدة الفرق بين التكاليف في الجدول إذا تجاوزت التكلفة الفعلية المبالغ المقدرة. تمثل الأرقام الحمراء المبالغ المتجاوزة (سالبة) والأرقام السوداء المبالغ ضمن التكلفة المقدرة (موجبة).
E3: التكلفة المفصلة (ر.س.) | H3: إجمالي التكلفة (ر.س.)
B4: المنطقة | C4: الأصناف | D4: الكمية | E4: المقدرة | F4: الفعلية | G4: الفرق | H4: المقدرة | I4: الفعلية | J4: الفرق
B5: المغطس/رأس مرش الاستحمام | C5: حوض الاستحمام، حديد زهر 5 بوصة، مقاس قياسي | D5: 1 | E5: ر.س.‏ 250.00 | F5: =RANDBETWEEN(E5+2,E5+20) -> ر.س.‏ 260.00 | G5: =IFERROR(التكاليف[[#This Row],[المقدرة]]-التكاليف[[#This Row],[الفعلية]], "") -> ر.س.‏ 10.00- | H5: =IFERROR(التكاليف[[#This Row],[الكمية]]*التكاليف[[#This Row],[المقدرة]], "") -> ر.س.‏ 250.00 | I5: =IFERROR(التكاليف[[#This Row],[الكمية]]*التكاليف[[#This Row],[الفعلية]], "") -> ر.س.‏ 260.00 | J5: =IFERROR(التكاليف[[#This Row],[المقدرة ]]-التكاليف[[#This Row],[الفعلية ]], "") -> ر.س.‏ 10.00-
B6: المغطس/رأس مرش الاستحمام | C6: أبواب حجرة الاستحمام، متصلة بمفصلة، مقاس قياسي | D6: 1 | E6: ر.س.‏ 200.00 | F6: ر.س.‏ 205.00 | G6: =IFERROR(التكاليف[[#This Row],[المقدرة]]-التكاليف[[#This Row],[الفعلية]], "") -> ر.س.‏ 5.00- | H6: =IFERROR(التكاليف[[#This Row],[الكمية]]*التكاليف[[#This Row],[المقدرة]], "") -> ر.س.‏ 200.00 | I6: =IFERROR(التكاليف[[#This Row],[الكمية]]*التكاليف[[#This Row],[الفعلية]], "") -> ر.س.‏ 205.00 | J6: =IFERROR(التكاليف[[#This Row],[المقدرة ]]-التكاليف[[#This Row],[الفعلية ]], "") -> ر.س.‏ 5.00-
B7: المغطس/رأس مرش الاستحمام | C7: رأس دش الاستحمام، مقاس قياسي | D7: 1 | E7: ر.س.‏ 50.00 | F7: ر.س.‏ 56.00 | G7: =IFERROR(التكاليف[[#This Row],[المقدرة]]-التكاليف[[#This Row],[الفعلية]], "") -> ر.س.‏ 6.00- | H7: =IFERROR(التكاليف[[#This Row],[الكمية]]*التكاليف[[#This Row],[المقدرة]], "") -> ر.س.‏ 50.00 | I7: =IFERROR(التكاليف[[#This Row],[الكمية]]*التكاليف[[#This Row],[الفعلية]], "") -> ر.س.‏ 56.00 | J7: =IFERROR(التكاليف[[#This Row],[المقدرة ]]-التكاليف[[#This Row],[الفعلية ]], "") -> ر.س.‏ 6.00-
B8: المغطس/رأس مرش الاستحمام | C8: مجسم جدار حوض الاستحمام، مقاس قياسي | D8: 1 | E8: ر.س.‏ 200.00 | F8: ر.س.‏ 213.00 | G8: =IFERROR(التكاليف[[#This Row],[المقدرة]]-التكاليف[[#This Row],[الفعلية]], "") -> ر.س.‏ 13.00- | H8: =IFERROR(التكاليف[[#This Row],[الكمية]]*التكاليف[[#This Row],[المقدرة]], "") -> ر.س.‏ 200.00 | I8: =IFERROR(التكاليف[[#This Row],[الكمية]]*التكاليف[[#This Row],[الفعلية]], "") -> ر.س.‏ 213.00 | J8: =IFERROR(التكاليف[[#This Row],[المقدرة ]]-التكاليف[[#This Row],[الفعلية ]], "") -> ر.س.‏ 13.00-
B9: الخزانات | C9: خزانة الأدوية 24 بوصة، 2 رف | D9: 1 | E9: ر.س.‏ 200.00 | F9: ر.س.‏ 211.00 | G9: =IFERROR(التكاليف[[#This Row],[المقدرة]]-التكاليف[[#This Row],[الفعلية]], "") -> ر.س.‏ 11.00- | H9: =IFERROR(التكاليف[[#This Row],[الكمية]]*التكاليف[[#This Row],[المقدرة]], "") -> ر.س.‏ 200.00 | I9: =IFERROR(التكاليف[[#This Row],[الكمية]]*التكاليف[[#This Row],[الفعلية]], "") -> ر.س.‏ 211.00 | J9: =IFERROR(التكاليف[[#This Row],[المقدرة ]]-التكاليف[[#This Row],[الفعلية ]], "") -> ر.س.‏ 11.00-
B10: الخزانات | C10: منضدة تزيين قابلة للتركيب 30 بوصة، مقاس قياسي | D10: 2 | E10: ر.س.‏ 100.00 | F10: ر.س.‏ 106.00 | G10: =IFERROR(التكاليف[[#This Row],[المقدرة]]-التكاليف[[#This Row],[الفعلية]], "") -> ر.س.‏ 6.00- | H10: =IFERROR(التكاليف[[#This Row],[الكمية]]*التكاليف[[#This Row],[المقدرة]], "") -> ر.س.‏ 200.00 | I10: =IFERROR(التكاليف[[#This Row],[الكمية]]*التكاليف[[#This Row],[الفعلية]], "") -> ر.س.‏ 212.00 | J10: =IFERROR(التكاليف[[#This Row],[المقدرة ]]-التكاليف[[#This Row],[الفعلية ]], "") -> ر.س.‏ 12.00-
B11: طاولات الأحواض | C11: بلاط خزفي، فاخر (الكمية بالقدم الخطي) | D11: 5 | E11: ر.س.‏ 22.50 | F11: ر.س.‏ 40.00 | G11: =IFERROR(التكاليف[[#This Row],[المقدرة]]-التكاليف[[#This Row],[الفعلية]], "") -> ر.س.‏ 17.50- | H11: =IFERROR(التكاليف[[#This Row],[الكمية]]*التكاليف[[#This Row],[المقدرة]], "") -> ر.س.‏ 112.50 | I11: =IFERROR(التكاليف[[#This Row],[الكمية]]*التكاليف[[#This Row],[الفعلية]], "") -> ر.س.‏ 200.00 | J11: =IFERROR(التكاليف[[#This Row],[المقدرة ]]-التكاليف[[#This Row],[الفعلية ]], "") -> ر.س.‏ 87.50-
B12: الصنابير | C12: صنبور وحوض استحمام، مقاس قياسي | D12: 1 | E12: ر.س.‏ 90.00 | F12: ر.س.‏ 106.00 | G12: =IFERROR(التكاليف[[#This Row],[المقدرة]]-التكاليف[[#This Row],[الفعلية]], "") -> ر.س.‏ 16.00- | H12: =IFERROR(التكاليف[[#This Row],[الكمية]]*التكاليف[[#This Row],[المقدرة]], "") -> ر.س.‏ 90.00 | I12: =IFERROR(التكاليف[[#This Row],[الكمية]]*التكاليف[[#This Row],[الفعلية]], "") -> ر.س.‏ 106.00 | J12: =IFERROR(التكاليف[[#This Row],[المقدرة ]]-التكاليف[[#This Row],[الفعلية ]], "") -> ر.س.‏ 16.00-
B13: الصنابير | C13: صنبور ومرش استحمام، بمقبض واحد، مقاس قياسي | D13: 1 | E13: ر.س.‏ 115.00 | F13: ر.س.‏ 117.00 | G13: =IFERROR(التكاليف[[#This Row],[المقدرة]]-التكاليف[[#This Row],[الفعلية]], "") -> ر.س.‏ 2.00- | H13: =IFERROR(التكاليف[[#This Row],[الكمية]]*التكاليف[[#This Row],[المقدرة]], "") -> ر.س.‏ 115.00 | I13: =IFERROR(التكاليف[[#This Row],[الكمية]]*التكاليف[[#This Row],[الفعلية]], "") -> ر.س.‏ 117.00 | J13: =IFERROR(التكاليف[[#This Row],[المقدرة ]]-التكاليف[[#This Row],[الفعلية ]], "") -> ر.س.‏ 2.00-
B14: الصنابير | C14: صنبور حوض، مقاس قياسي | D14: 1 | E14: ر.س.‏ 95.00 | F14: ر.س.‏ 113.00 | G14: =IFERROR(التكاليف[[#This Row],[المقدرة]]-التكاليف[[#This Row],[الفعلية]], "") -> ر.س.‏ 18.00- | H14: =IFERROR(التكاليف[[#This Row],[الكمية]]*التكاليف[[#This Row],[المقدرة]], "") -> ر.س.‏ 95.00 | I14: =IFERROR(التكاليف[[#This Row],[الكمية]]*التكاليف[[#This Row],[الفعلية]], "") -> ر.س.‏ 113.00 | J14: =IFERROR(التكاليف[[#This Row],[المقدرة ]]-التكاليف[[#This Row],[الفعلية ]], "") -> ر.س.‏ 18.00-
B15: الأرضيات | C15: بلاط خزفي، مقاس قياسي (الكمية بالقدم المربع) | D15: 35 | E15: ر.س.‏ 12.00 | F15: ر.س.‏ 29.00 | G15: =IFERROR(التكاليف[[#This Row],[المقدرة]]-التكاليف[[#This Row],[الفعلية]], "") -> ر.س.‏ 17.00- | H15: =IFERROR(التكاليف[[#This Row],[الكمية]]*التكاليف[[#This Row],[المقدرة]], "") -> ر.س.‏ 420.00 | I15: =IFERROR(التكاليف[[#This Row],[الكمية]]*التكاليف[[#This Row],[الفعلية]], "") -> ر.س.‏ 1,015.00 | J15: =IFERROR(التكاليف[[#This Row],[المقدرة ]]-التكاليف[[#This Row],[الفعلية ]], "") -> ر.س.‏ 595.00-
B16: المستلزمات المعدنية | C16: قضيب منشفة، مقاس قياسي | D16: 2 | E16: ر.س.‏ 15.00 | F16: ر.س.‏ 17.00 | G16: =IFERROR(التكاليف[[#This Row],[المقدرة]]-التكاليف[[#This Row],[الفعلية]], "") -> ر.س.‏ 2.00- | H16: =IFERROR(التكاليف[[#This Row],[الكمية]]*التكاليف[[#This Row],[المقدرة]], "") -> ر.س.‏ 30.00 | I16: =IFERROR(التكاليف[[#This Row],[الكمية]]*التكاليف[[#This Row],[الفعلية]], "") -> ر.س.‏ 34.00 | J16: =IFERROR(التكاليف[[#This Row],[المقدرة ]]-التكاليف[[#This Row],[الفعلية ]], "") -> ر.س.‏ 4.00-
B17: المستلزمات المعدنية | C17: حامل ورق حمام | D17: 1 | E17: ر.س.‏ 10.00 | F17: ر.س.‏ 14.00 | G17: =IFERROR(التكاليف[[#This Row],[المقدرة]]-التكاليف[[#This Row],[الفعلية]], "") -> ر.س.‏ 4.00- | H17: =IFERROR(التكاليف[[#This Row],[الكمية]]*التكاليف[[#This Row],[المقدرة]], "") -> ر.س.‏ 10.00 | I17: =IFERROR(التكاليف[[#This Row],[الكمية]]*التكاليف[[#This Row],[الفعلية]], "") -> ر.س.‏ 14.00 | J17: =IFERROR(التكاليف[[#This Row],[المقدرة ]]-التكاليف[[#This Row],[الفعلية ]], "") -> ر.س.‏ 4.00-
B18: الإضاءة | C18: إضاءة مثبتة، مقاس قياسي | D18: 4 | E18: ر.س.‏ 25.00 | F18: ر.س.‏ 32.00 | G18: =IFERROR(التكاليف[[#This Row],[المقدرة]]-التكاليف[[#This Row],[الفعلية]], "") -> ر.س.‏ 7.00- | H18: =IFERROR(التكاليف[[#This Row],[الكمية]]*التكاليف[[#This Row],[المقدرة]], "") -> ر.س.‏ 100.00 | I18: =IFERROR(التكاليف[[#This Row],[الكمية]]*التكاليف[[#This Row],[الفعلية]], "") -> ر.س.‏ 128.00 | J18: =IFERROR(التكاليف[[#This Row],[المقدرة ]]-التكاليف[[#This Row],[الفعلية ]], "") -> ر.س.‏ 28.00-
B19: الأحواض | C19: مرحاض، مقاس قياسي | D19: 2 | E19: ر.س.‏ 60.00 | F19: ر.س.‏ 80.00 | G19: =IFERROR(التكاليف[[#This Row],[المقدرة]]-التكاليف[[#This Row],[الفعلية]], "") -> ر.س.‏ 20.00- | H19: =IFERROR(التكاليف[[#This Row],[الكمية]]*التكاليف[[#This Row],[المقدرة]], "") -> ر.س.‏ 120.00 | I19: =IFERROR(التكاليف[[#This Row],[الكمية]]*التكاليف[[#This Row],[الفعلية]], "") -> ر.س.‏ 160.00 | J19: =IFERROR(التكاليف[[#This Row],[المقدرة ]]-التكاليف[[#This Row],[الفعلية ]], "") -> ر.س.‏ 40.00-
B20: أخرى | D20: 1 | E20: ر.س.‏ 20.00 | F20: ر.س.‏ 25.00 | G20: =IFERROR(التكاليف[[#This Row],[المقدرة]]-التكاليف[[#This Row],[الفعلية]], "") -> ر.س.‏ 5.00- | H20: =IFERROR(التكاليف[[#This Row],[الكمية]]*التكاليف[[#This Row],[المقدرة]], "") -> ر.س.‏ 20.00 | I20: =IFERROR(التكاليف[[#This Row],[الكمية]]*التكاليف[[#This Row],[الفعلية]], "") -> ر.س.‏ 25.00 | J20: =IFERROR(التكاليف[[#This Row],[المقدرة ]]-التكاليف[[#This Row],[الفعلية ]], "") -> ر.س.‏ 5.00-
B21: الإجمالي الفرعي | E21: =SUBTOTAL(109,التكاليف[المقدرة]) -> ر.س.‏ 1,464.50 | F21: =SUBTOTAL(109,التكاليف[الفعلية]) -> ر.س.‏ 1,624.00 | G21: =SUBTOTAL(109,التكاليف[الفرق]) -> ر.س.‏ 159.50- | H21: =SUBTOTAL(109,التكاليف[[المقدرة ]]) -> ر.س.‏ 2,212.50 | I21: =SUBTOTAL(109,التكاليف[[الفعلية ]]) -> ر.س.‏ 3,069.00 | J21: =SUBTOTAL(109,التكاليف[[الفرق ]]) -> ر.س.‏ 856.50-
B22: التكلفة غير المتوقعة (إضافة نسبة مقدرة بـ 30%) | E22: =IFERROR(التكاليف[[#Totals],[المقدرة]]*0.3, "") -> ر.س.‏ 439.35 | H22: =IFERROR(التكاليف[[#Totals],[المقدرة ]]*0.3, "") -> ر.س.‏ 663.75
B23: إجمالي التكاليف | E23: =IFERROR(SUM(E21:E21), "") -> ر.س.‏ 1,464.50 | H23: =IFERROR(SUM(التكاليف[[#Totals],[المقدرة ]],الفائض), "") -> ر.س.‏ 2,876.25
